bitfinex/quotes_SOLUSD_20250207
["timestamp","ask_amount","ask_price","bid_price","bid_amount"]
[1738941417412,0.063,198.65,198.62,38.88885758]
[1738941417612,0.063,198.65,198.57,0.75507059]
[1738941417830,0.063,198.65,198.6,38.88885758]
[1738941418134,0.063,198.65,198.64,38.88885758]
[1738941419927,0.063,198.65,198.64,41.80383758]
[1738941420243,0.063,198.72,198.69,0.25098]
[1738941420420,0.063,198.72,198.71,38.88885758]
[1738941421038,0.063,198.72,198.68,38.88885758]
[1738941421335,0.063,198.72,198.67,38.88885758]
[1738941421533,0.063,198.72,198.63,1.00576053]
[1738941421534,38.88885758,198.7,198.63,39.64363811]
[1738941421739,38.88885758,198.67,198.6,38.88885758]
[1738941421931,38.88885758,198.63,198.56,1.6364]
[1738941422137,38.88885758,198.63,198.51,1.0]
[1738941422138,0.063,198.65,198.51,5.0375]
[1738941422342,0.41438102,198.64,198.47,1.6364]
[1738941422524,38.88885758,198.53,198.47,1.6364]
[1738941422726,38.88885758,198.6,198.52,38.88885758]
[1738941422933,3.0206,198.63,198.47,21.6364]
[1738941422934,0.41438102,198.62,198.47,1.6364]
[1738941423129,0.41438102,198.61,198.47,1.6364]
[1738941423340,20.0,198.52,198.39,9.37770142]
[1738941423648,13.41184853,198.48,198.39,7.80140142]
[1738941423856,13.41184853,198.46,198.31,1.5763]
[1738941424061,38.88885758,198.37,198.31,1.5763]
[1738941424353,38.88885758,198.36,198.31,1.5763]
[1738941424726,38.88885758,198.35,198.31,1.5763]
[1738941424925,38.88885758,198.33,198.25,38.88885758]
[1738941425139,38.88885758,198.3,198.22,43.93355758]
[1738941425352,38.88885758,198.28,198.21,1.5763]
[1738941425550,38.88885758,198.26,198.2,7.80140142]
[1738941425724,38.88885758,198.26,198.18,54.49166042]
[1738941425928,14.07720955,198.34,198.17,0.03]
[1738941425929,38.88885758,198.21,198.17,0.03]
[1738941426250,38.88885758,198.18,198.17,0.03]
[1738941426842,41.91635758,198.18,198.17,0.03]
[1738941427050,38.88885758,198.22,198.17,0.03]
[1738941427571,38.88885758,198.18,198.17,0.03]
[1738941427727,38.88885758,198.19,198.17,0.03]
[1738941428154,38.88885758,198.18,198.17,0.03]
[1738941428827,42.3307386,198.18,198.17,0.03]
[1738941429160,55.74258713,198.18,198.17,0.03]
[1738941429328,55.74258713,198.18,198.04,0.03]
[1738941429329,13.41184853,198.17,198.04,0.03]
[1738941429656,38.88885758,198.07,198.04,0.03]
[1738941429834,38.88885758,198.1,198.04,0.03]
[1738941430036,38.88885758,198.09,198.04,0.03]
[1738941430254,38.88885758,198.08,198.04,0.03]
[1738941430552,38.88885758,198.1,198.04,0.03]
[1738941430754,38.88885758,198.09,198.04,0.03]
[1738941431259,38.88885758,198.07,198.04,0.03]
[1738941431554,3.44288102,198.12,198.04,0.03]
[1738941431555,38.88885758,198.05,198.04,0.03]
[1738941431930,38.88885758,198.06,198.04,0.03]
[1738941432127,38.88885758,198.1,198.04,0.03]
[1738941432472,38.88885758,198.08,198.04,0.03]
[1738941432770,2.5237,198.12,198.04,0.03]
[1738941432935,1.0,198.17,198.04,0.03]
[1738941433131,0.41438102,198.17,198.04,0.03]
[1738941433446,13.66282853,198.16,198.04,0.03]
[1738941433640,0.41438102,198.15,198.04,0.03]
[1738941433845,38.88885758,198.1,198.04,0.03]
[1738941434249,38.88885758,198.09,198.04,0.03]
[1738941435266,38.88885758,198.1,198.04,0.03]
[1738941435468,38.88885758,198.14,198.07,38.88885758]
[1738941435765,0.41438102,198.13,198.04,0.03]
[1738941436062,0.41438102,198.15,198.04,0.03]
[1738941436482,14.66282853,198.14,198.04,0.03]
[1738941436771,0.41438102,198.13,198.04,0.03]
[1738941437075,38.88885758,198.1,198.04,0.03]
[1738941437275,38.88885758,198.14,198.07,38.88885758]
[1738941437445,41.41225758,198.14,198.07,38.88885758]
[1738941437648,38.88885758,198.16,198.08,38.88885758]
[1738941437952,0.41438102,198.24,198.08,20.0]
[1738941438163,2.5224,198.23,198.08,20.0]
[1738941438469,13.41184853,198.21,198.06,1.5351]
[1738941438647,0.41438102,198.2,198.06,1.5351]
[1738941438839,2.93678102,198.23,198.07,0.25098]
[1738941439056,38.88885758,198.22,198.15,38.88885758]
[1738941439253,41.41075758,198.27,198.19,38.88885758]
[1738941439442,38.88885758,198.29,198.21,38.88885758]
[1738941439846,38.88885758,198.32,198.24,38.88885758]
[1738941440263,38.88885758,198.3,198.23,38.88885758]
[1738941440567,38.88885758,198.29,198.16,1.00753483]
[1738941440768,38.88885758,198.25,198.18,38.88885758]
[1738941441066,0.41438102,198.24,198.09,5.0482]
[1738941441246,0.25098,198.25,198.09,5.0482]
[1738941441448,1.0,198.29,198.09,5.0482]
[1738941441449,0.41438102,198.33,198.1,1.75705934]
[1738941441683,7.3029,198.32,198.1,0.75705934]
[1738941441852,1.0,198.3,198.12,20.0]
[1738941442048,38.88885758,198.24,198.17,38.88885758]
[1738941442364,38.88885758,198.29,198.21,38.88885758]
[1738941442565,38.88885758,198.31,198.23,38.88885758]
[1738941442747,41.40985758,198.33,198.26,38.88885758]
[1738941442947,41.40975758,198.34,198.27,38.88885758]
[1738941443170,38.88885758,198.38,198.3,38.88885758]
[1738941443378,38.88885758,198.37,198.3,38.88885758]
[1738941443582,2.5181,198.56,198.38,1.0]
[1738941443764,34.8991196,198.71,198.38,1.0]
[1738941443765,2.5176,198.6,198.44,1.0]
[1738941444074,2.5174,198.62,198.46,0.25098]
[1738941444281,2.5171,198.64,198.47,0.75541268]
[1738941444450,2.5171,198.64,198.48,0.25098]
[1738941444646,38.88885758,198.64,198.56,38.88885758]
[1738941444846,38.88885758,198.66,198.58,38.88885758]
[1738941445068,38.88885758,198.62,198.55,38.88885758]
[1738941445257,2.58,198.65,198.51,38.88885758]
[1738941445258,38.88885758,198.6,198.51,38.88885758]
[1738941445459,38.88885758,198.56,198.49,38.88885758]
[1738941445667,38.88885758,198.52,198.45,38.88885758]
[1738941445863,38.88885758,198.6,198.51,38.88885758]
[1738941446169,0.063,198.62,198.46,21.25098]
[1738941446376,0.063,198.62,198.48,0.25098]
[1738941446763,0.063,198.62,198.49,0.75541275]
[1738941447078,38.95185758,198.62,198.54,38.88885758]
[1738941447275,38.88885758,198.6,198.52,38.88885758]
[1738941447606,0.063,198.62,198.55,38.88885758]
[1738941447758,0.063,198.62,198.51,0.12549]
[1738941447759,0.063,198.62,198.58,38.88885758]
[1738941448074,0.063,198.62,198.61,38.88885758]
[1738941448455,0.063,198.65,198.59,20.0]
[1738941448658,0.063,198.65,198.6,1.00592299]
[1738941448898,0.063,198.65,198.64,38.88885758]
[1738941449370,0.063,198.65,198.59,38.88885758]
[1738941449575,38.88885758,198.63,198.55,38.88885758]
[1738941449809,0.063,198.65,198.56,38.88885758]
[1738941449995,38.88885758,198.64,198.56,38.88885758]
[1738941450197,0.063,198.65,198.56,38.88885758]
[1738941450372,0.063,198.65,198.57,38.88885758]
[1738941450695,0.063,198.65,198.58,38.88885758]
[1738941450907,38.88885758,198.64,198.56,38.88885758]
[1738941451067,38.88885758,198.57,198.45,12.5973]
[1738941451267,0.25098,198.61,198.44,1.5717]
[1738941451486,38.88885758,198.52,198.44,1.5717]
[1738941451770,38.88885758,198.53,198.46,38.88885758]
[1738941452072,38.88885758,198.54,198.47,38.88885758]
[1738941452488,38.88885758,198.55,198.47,38.88885758]
[1738941452693,38.88885758,198.56,198.48,38.88885758]
[1738941452890,38.88885758,198.59,198.51,38.88885758]
[1738941453089,8.8107,198.62,198.49,38.88885758]
[1738941453090,38.88885758,198.56,198.49,38.88885758]
[1738941453292,38.88885758,198.62,198.54,38.88885758]
[1738941453482,0.063,198.65,198.5,0.12549]
[1738941453674,0.063,198.65,198.51,0.75523053]
[1738941453904,1.0,198.59,198.45,0.75524354]
[1738941454197,1.0,198.53,198.38,5.0406]
[1738941454399,1.0,198.53,198.26,2.5884]
[1738941454400,1.0,198.48,198.3,12.6069]
[1738941454588,38.88885758,198.37,198.3,39.64489882]
[1738941454795,38.88885758,198.37,198.28,38.88885758]
[1738941455306,38.88885758,198.35,198.26,40.47725758]
[1738941455604,38.88885758,198.33,198.26,38.88885758]
[1738941455895,38.88885758,198.33,198.22,6.76]
[1738941455896,38.88885758,198.33,198.24,38.88885758]
[1738941456284,41.40905758,198.39,198.3,38.88885758]
[1738941456490,41.40905758,198.39,198.32,38.88885758]
[1738941456682,2.5202,198.39,198.32,38.88885758]
[1738941457397,38.88885758,198.37,198.3,38.88885758]
[1738941457608,38.88885758,198.34,198.26,38.88885758]
[1738941458179,38.88885758,198.33,198.25,38.88885758]
[1738941458817,38.88885758,198.35,198.27,38.88885758]
[1738941459176,2.5209,198.34,198.27,38.88885758]
[1738941459880,38.88885758,198.33,198.26,38.88885758]
[1738941460517,38.88885758,198.35,198.26,38.88885758]
[1738941460718,38.88885758,198.35,198.28,38.88885758]
[1738941461083,38.88885758,198.34,198.27,38.88885758]
[1738941461309,38.88885758,198.33,198.26,38.88885758]
[1738941461513,38.88885758,198.37,198.29,38.88885758]
[1738941461724,38.88885758,198.4,198.24,0.75623262]
[1738941462006,1.0,198.37,198.22,6.76]
[1738941462206,1.0,198.38,198.21,0.7562887]
[1738941462517,1.0,198.33,198.17,0.75652439]
[1738941462685,21.0,198.33,198.17,0.75652439]
[1738941463008,20.0,198.33,198.16,314.38281716]
[1738941463191,38.88885758,198.28,198.2,38.88885758]
[1738941463392,41.41015758,198.31,198.23,38.88885758]
[1738941463701,38.88885758,198.27,198.19,38.88885758]
[1738941464006,38.88885758,198.26,198.19,38.88885758]
[1738941464208,38.88885758,198.23,198.16,40.51505758]
[1738941464379,20.0,198.27,198.16,1.6262]
[1738941464580,38.88885758,198.21,198.16,1.6262]
[1738941464806,38.88885758,198.23,198.16,1.6262]
[1738941465007,38.88885758,198.21,198.16,1.6262]
[1738941465381,23.89005492,198.21,198.16,1.6262]
[1738941466019,38.88885758,198.17,198.12,0.03]
[1738941466186,38.88885758,198.2,198.12,0.03]
[1738941466187,38.88885758,198.13,198.12,0.03]
[1738941466380,38.88885758,198.15,198.12,0.03]
[1738941466584,2.5226,198.21,198.12,0.03]
[1738941467201,8.8255,198.29,198.12,5.83418261]
[1738941467402,2.5215,198.29,198.16,0.12549]
[1738941467683,38.88885758,198.27,198.2,38.88885758]
[1738941467926,38.88885758,198.28,198.21,38.88885758]
[1738941468214,38.88885758,198.26,198.19,38.88885758]
[1738941468420,38.88885758,198.28,198.2,38.88885758]
[1738941468617,2.5217,198.28,198.15,0.88206464]
[1738941469118,2.5217,198.28,198.18,38.88885758]
[1738941469290,38.88885758,198.25,198.18,38.88885758]
[1738941469486,38.88885758,198.24,198.17,38.88885758]
[1738941470718,2.5213,198.31,198.15,0.75668694]
[1738941470888,8.8245,198.31,198.15,0.75668694]
[1738941471086,2.5213,198.31,198.16,0.25098]
[1738941471304,8.8245,198.31,198.15,0.75668694]
[1738941471736,38.88885758,198.25,198.18,38.88885758]
[1738941472092,38.88885758,198.25,198.12,0.0001]
[1738941472093,1.0,198.15,198.12,0.0001]
[1738941472330,38.88885758,198.13,198.12,0.0001]
[1738941472693,41.41235758,198.13,198.12,0.0001]
[1738941474729,81.42670516,198.13,198.12,0.0001]
[1738941474943,20.0,198.1,198.08,0.0001]
[1738941475097,39.88885758,198.09,198.08,0.0001]
[1738941475431,38.88885758,198.09,198.08,0.0001]
[1738941476101,38.88885758,198.12,198.08,0.0001]
[1738941476302,2.5235,198.13,198.08,0.0001]
[1738941476717,2.5228,198.19,198.08,0.0001]
[1738941477043,1.0,198.15,198.08,0.0001]
[1738941477203,20.0,198.15,198.08,0.0001]
[1738941477406,38.88885758,198.09,198.08,0.0001]
[1738941477715,38.88885758,198.1,198.08,0.0001]
[1738941477895,38.88885758,198.09,198.08,0.0001]
[1738941478841,38.88885758,198.11,198.08,0.0001]
[1738941479019,38.88885758,198.1,198.08,0.0001]
[1738941479733,38.88885758,198.09,198.08,0.0001]
[1738941479902,38.88885758,198.11,198.08,0.0001]
[1738941480108,38.88885758,198.09,198.08,0.0001]
[1738941481017,40.90805758,198.09,198.08,0.0001]
[1738941481222,38.88885758,198.11,198.08,0.0001]
[1738941481410,38.88885758,198.13,198.08,0.0001]
[1738941482013,38.88885758,198.16,198.08,38.88895758]
[1738941482340,2.0182,198.19,198.08,38.88895758]
[1738941482341,38.88885758,198.15,198.08,38.88895758]
[1738941482665,40.90705758,198.19,198.12,38.88885758]
[1738941482804,40.90705758,198.19,198.1,38.88885758]
[1738941482805,38.88885758,198.18,198.1,38.88885758]
[1738941483005,38.88885758,198.18,198.08,0.75711737]
[1738941483006,7.0638,198.19,198.08,38.88895758]
[1738941483232,7.0638,198.19,198.08,0.0001]
[1738941483537,38.88885758,198.22,198.1,20.25098]
[1738941483704,38.88885758,198.22,198.15,38.88885758]
[1738941483913,38.88885758,198.16,198.12,1.5072]
[1738941484113,1.0,198.22,198.12,1.5072]
[1738941484317,1.0,198.22,198.08,0.0001]
[1738941484507,6.0434,198.28,198.08,0.0001]
[1738941484720,5.0434,198.28,198.1,0.25098]
[1738941484923,20.0,198.25,198.08,5.80512582]
[1738941485119,5.0434,198.28,198.1,0.25098]
[1738941485318,2.0172,198.29,198.15,0.25098]
[1738941485527,0.063,198.31,198.15,0.25098]
[1738941485528,0.063,198.31,198.22,1.0]
[1738941485707,0.063,198.31,198.29,38.88885758]
[1738941485905,0.063,198.31,198.23,0.75643567]
[1738941485906,0.063,198.31,198.3,38.88885758]
[1738941486312,38.88885758,198.37,198.29,38.88885758]
[1738941486515,38.88885758,198.36,198.28,45.33665758]
[1738941486718,2.0162,198.39,198.28,6.4478]
[1738941486719,38.88885758,198.34,198.28,6.4478]
[1738941486939,7.0567,198.39,198.22,38.88885758]
[1738941486940,2.0168,198.33,198.22,38.88885758]
[1738941487141,38.88885758,198.28,198.21,38.88885758]
[1738941487449,38.88885758,198.27,198.2,7.9631]
[1738941487743,2.0168,198.33,198.2,14.76500321]
[1738941487930,7.0567,198.39,198.2,13.76500321]
[1738941488439,20.0,198.36,198.21,0.25098]
[1738941488634,7.0567,198.39,198.23,0.25098]
[1738941488835,2.0167,198.35,198.29,38.88885758]
[1738941489047,38.88885758,198.4,198.32,38.88885758]
[1738941489219,40.90505758,198.4,198.32,38.88885758]
[1738941489420,38.88885758,198.36,198.28,38.88885758]
[1738941489635,7.0565,198.4,198.24,5.80057029]
[1738941489947,20.0,198.37,198.21,0.75625829]
[1738941490180,1.0,198.33,198.2,7.9631]
[1738941490455,21.0,198.29,198.12,7.31048]
[1738941490631,38.88885758,198.18,198.12,6.5538]
[1738941491254,5.0448,198.23,198.12,45.44265758]
[1738941491255,2.0183,198.19,198.12,45.44265758]
[1738941491844,38.88885758,198.16,198.12,6.5538]
[1738941492151,40.90715758,198.19,198.12,6.5538]
[1738941492458,38.88885758,198.19,198.12,45.44265758]
[1738941492633,2.0181,198.21,198.11,8.1763]
[1738941492634,38.88885758,198.17,198.11,8.1763]
[1738941492946,2.0185,198.16,198.11,8.1763]
[1738941493140,38.88885758,198.15,198.11,1.5163]
[1738941493517,38.88885758,198.19,198.13,38.88885758]
[1738941493712,38.88885758,198.19,198.11,1.5163]
[1738941493713,2.0182,198.19,198.11,2.27312339]
[1738941493920,2.0179,198.23,198.18,38.88885758]
[1738941494123,2.0179,198.23,198.17,38.88885758]
[1738941494346,2.0179,198.23,198.13,0.75667476]
[1738941494347,2.0179,198.23,198.18,38.88885758]
[1738941494556,6.0677,198.37,198.17,0.12549]
[1738941494747,49.96945758,198.4,198.25,38.88885758]
[1738941494748,5.0418,198.34,198.25,38.88885758]
[1738941494946,38.88885758,198.34,198.27,38.88885758]
[1738941495147,38.88885758,198.38,198.31,38.88885758]
[1738941495455,7.0567,198.39,198.32,38.88885758]
[1738941495658,38.88885758,198.37,198.3,38.88885758]
[1738941495842,38.88885758,198.34,198.27,38.88885758]
[1738941496023,17.1378,198.39,198.22,6.4378]
[1738941496223,38.88885758,198.31,198.23,38.88885758]
[1738941496426,38.88885758,198.33,198.25,38.88885758]
[1738941496653,38.88885758,198.32,198.25,38.88885758]
[1738941496862,2.017,198.31,198.24,38.88885758]
[1738941497045,40.90585758,198.31,198.24,38.88885758]
[1738941497355,38.88885758,198.3,198.22,45.32665758]
[1738941497571,38.88885758,198.27,198.19,38.88885758]
[1738941497731,38.88885758,198.25,198.17,38.88885758]
[1738941497927,38.88885758,198.25,198.18,38.88885758]
[1738941498122,38.88885758,198.29,198.22,38.88885758]
[1738941498342,2.017,198.31,198.2,0.12549]
[1738941498557,2.0167,198.34,198.22,0.25098]
[1738941498849,5.0418,198.34,198.2,0.75634529]
[1738941499256,5.0418,198.34,198.21,0.25098]
[1738941499553,38.88885758,198.32,198.24,38.88885758]
[1738941499854,40.90545758,198.35,198.27,38.88885758]
[1738941500025,38.88885758,198.39,198.31,38.88885758]
[1738941500225,38.88885758,198.38,198.31,38.88885758]
[1738941500430,38.88885758,198.36,198.24,0.75614923]
[1738941500730,5.0399,198.42,198.27,0.25098]
[1738941501035,38.88885758,198.4,198.33,38.88885758]
[1738941501260,38.88885758,198.37,198.29,38.88885758]
[1738941501442,38.88885758,198.36,198.29,38.88885758]
[1738941501637,38.88885758,198.32,198.26,1.5493]
[1738941501842,38.88885758,198.3,198.26,1.5493]
[1738941502343,38.88885758,198.36,198.28,38.88885758]
[1738941502538,38.88885758,198.39,198.32,38.88885758]
[1738941502737,38.88885758,198.42,198.35,38.88885758]
[1738941502941,2.0159,198.42,198.35,38.88885758]
[1738941503146,2.0159,198.42,198.33,5.16749]
[1738941503333,38.88885758,198.46,198.39,38.88885758]
[1738941503965,38.88885758,198.44,198.36,38.88885758]
[1738941504264,38.88885758,198.45,198.37,38.88885758]
[1738941504560,38.88885758,198.47,198.4,38.88885758]
[1738941504765,38.88885758,198.46,198.38,38.88885758]
[1738941504961,38.88885758,198.44,198.37,38.88885758]
[1738941505149,38.88885758,198.46,198.38,38.88885758]
[1738941505348,38.88885758,198.45,198.38,38.88885758]
[1738941505537,5.0382,198.48,198.39,38.88885758]
[1738941505538,38.88885758,198.47,198.39,38.88885758]
[1738941505739,38.88885758,198.46,198.38,38.88885758]
[1738941506148,38.88885758,198.42,198.35,38.88885758]
[1738941506349,38.88885758,198.43,198.35,38.88885758]
[1738941506547,38.88885758,198.42,198.34,38.88885758]
[1738941506858,2.0157,198.44,198.36,38.88885758]
[1738941506859,40.90455758,198.44,198.36,38.88885758]
[1738941507059,2.0156,198.46,198.4,38.88885758]
[1738941507445,38.88885758,198.44,198.37,38.88885758]
[1738941507646,40.90445758,198.46,198.38,38.88885758]
[1738941507838,40.90445758,198.46,198.36,0.75592689]
[1738941507839,7.0543,198.46,198.33,7.23593533]
[1738941508074,20.0,198.43,198.32,6.5394]
[1738941508240,2.0159,198.42,198.32,6.5394]
[1738941508439,7.0557,198.42,198.32,6.5394]
[1738941509043,38.88885758,198.38,198.3,38.88885758]
[1738941509363,38.88885758,198.39,198.32,38.88885758]
[1738941509573,45.94455758,198.42,198.34,38.88885758]
[1738941509957,45.94455758,198.42,198.35,38.88885758]
[1738941510259,2.0159,198.42,198.36,38.88885758]
[1738941510448,2.0159,198.42,198.37,38.88885758]
[1738941510775,2.0158,198.44,198.38,38.88885758]
[1738941511077,2.0158,198.44,198.35,38.88885758]
[1738941511078,38.88885758,198.42,198.35,38.88885758]
[1738941511373,38.88885758,198.4,198.32,38.88885758]
[1738941511544,38.88885758,198.4,198.33,38.88885758]
[1738941511879,38.88885758,198.4,198.31,0.75601646]
[1738941511880,38.88885758,198.38,198.31,38.88885758]
[1738941512081,38.88885758,198.36,198.29,38.88885758]
[1738941512287,38.88885758,198.34,198.27,38.88885758]
[1738941512578,2.0166,198.35,198.28,0.12549]
[1738941512789,2.0163,198.38,198.28,0.75604295]
[1738941512959,7.0571,198.38,198.28,0.75604295]
[1738941513142,7.0571,198.38,198.26,2.30552941]
[1738941513551,38.88885758,198.36,198.29,38.88885758]
[1738941513791,45.94595758,198.38,198.31,38.88885758]
[1738941513957,38.88885758,198.35,198.28,38.88885758]
[1738941514154,2.0167,198.34,198.28,38.88885758]
[1738941514460,38.88885758,198.3,198.23,38.88885758]
[1738941514664,38.88885758,198.28,198.2,38.88885758]
[1738941514849,38.88885758,198.27,198.2,38.88885758]
[1738941515198,38.88885758,198.28,198.21,38.88885758]
[1738941515787,38.88885758,198.28,198.18,2.29355386]
[1738941515788,38.88885758,198.24,198.18,1.537]
[1738941516351,40.90665758,198.23,198.18,1.537]
[1738941516557,7.0624,198.23,198.18,1.537]
[1738941516790,38.88885758,198.21,198.17,0.03]
[1738941516964,7.0624,198.23,198.17,0.03]
[1738941517159,0.25098,198.22,198.1,1.5072]
[1738941517356,38.88885758,198.16,198.1,1.5072]
[1738941517585,0.12549,198.22,198.1,1.5072]
[1738941517586,38.88885758,198.17,198.1,40.39605758]
[1738941517794,0.12549,198.22,198.1,40.39605758]
[1738941517795,7.0624,198.23,198.11,0.75700147]
[1738941517995,45.95125758,198.23,198.16,38.88885758]
[1738941518861,45.95125758,198.23,198.1,40.52154758]
[1738941518862,38.88885758,198.2,198.13,38.88885758]
[1738941519384,38.88885758,198.22,198.15,38.88885758]
[1738941519584,2.0178,198.23,198.11,0.25098]
[1738941519887,2.0168,198.33,198.12,1.7566895]
[1738941520207,0.12549,198.3,198.12,0.7566895]
[1738941520396,5.0436,198.27,198.13,0.12549]
[1738941520563,5.0436,198.27,198.13,0.88222016]
[1738941521089,38.88885758,198.22,198.15,38.88885758]
[1738941521275,38.88885758,198.23,198.16,38.88885758]
[1738941522085,38.88885758,198.26,198.19,38.88885758]
[1738941522257,5.0436,198.27,198.21,38.88885758]
[1738941522258,2.0176,198.25,198.21,38.88885758]
[1738941522461,2.0176,198.25,198.22,38.88885758]
[1738941522885,2.0173,198.28,198.24,38.88885758]
[1738941523385,43.93155758,198.31,198.26,38.88885758]
[1738941523386,2.017,198.31,198.26,38.88885758]
[1738941523795,2.0169,198.33,198.24,0.12549]
[1738941524007,2.0169,198.33,198.26,0.12549]
[1738941524174,0.063,198.39,198.27,0.75618052]
[1738941524374,0.063,198.39,198.26,0.88164196]
[1738941524571,0.18849,198.39,198.25,1.6249]
[1738941524787,0.12549,198.35,198.23,6.22]
[1738941524993,38.88885758,198.26,198.23,6.22]
[1738941525173,38.88885758,198.27,198.23,6.22]
[1738941525376,38.88885758,198.24,198.17,40.51375758]
[1738941525581,38.88885758,198.23,198.17,1.6249]
[1738941525981,38.88885758,198.22,198.15,38.88885758]
[1738941526284,38.88885758,198.21,198.14,38.88885758]
[1738941526485,7.0627,198.22,198.15,38.88885758]
[1738941526812,2.0179,198.22,198.18,38.88885758]
[1738941527098,38.88885758,198.24,198.17,38.88885758]
[1738941527294,2.0178,198.24,198.11,6.4992]
[1738941527503,2.0178,198.24,198.12,0.75689692]
[1738941527746,7.0621,198.24,198.13,0.12549]
[1738941528001,7.0621,198.24,198.14,0.75668453]
[1738941528181,5.0435,198.28,198.14,0.75668453]
[1738941528375,38.88885758,198.25,198.17,38.88885758]
[1738941528596,38.88885758,198.29,198.26,0.03]
[1738941529081,38.88885758,198.28,198.26,0.03]
[1738941529300,38.88885758,198.27,198.26,0.03]
[1738941529611,38.88885758,198.27,198.15,0.75651304]
[1738941529807,38.88885758,198.21,198.13,38.88885758]
[1738941529985,38.88885758,198.21,198.14,38.88885758]
[1738941530180,38.88885758,198.21,198.13,38.88885758]
[1738941530483,2.0181,198.2,198.14,38.88885758]
[1738941531305,2.0181,198.2,198.15,38.88885758]
[1738941531512,5.0445,198.24,198.12,5.80398604]
[1738941531513,38.88885758,198.25,198.18,38.88885758]
[1738941531717,40.90635758,198.26,198.19,39.64543213]
[1738941531926,2.0175,198.26,198.21,38.88885758]
[1738941532213,2.0175,198.26,198.2,38.88885758]
[1738941532387,2.0174,198.27,198.2,38.88885758]
[1738941532789,2.0172,198.29,198.22,38.88885758]
[1738941533091,40.90605758,198.29,198.21,39.77074103]
[1738941533294,40.90605758,198.29,198.19,39.64531496]
[1738941533295,38.88885758,198.27,198.19,39.64531496]
[1738941533824,38.88885758,198.27,198.21,0.12549]
[1738941533995,38.88885758,198.27,198.21,0.75645029]
[1738941534196,38.88885758,198.27,198.21,0.75645691]
[1738941534410,40.90625758,198.27,198.21,0.12549]
[1738941534594,2.0174,198.27,198.21,39.01434758]
[1738941534812,2.0174,198.27,198.22,0.75642613]
[1738941535124,38.88885758,198.25,198.19,0.75642401]
[1738941535321,38.88885758,198.24,198.18,6.14]
[1738941535512,40.90625758,198.27,198.2,38.88885758]
[1738941535715,2.0171,198.3,198.21,0.75645992]
[1738941535912,38.88885758,198.27,198.21,0.75645992]
[1738941536517,38.88885758,198.23,198.18,6.14]
[1738941538098,38.88885758,198.21,198.15,0.12549]
[1738941538631,40.90685758,198.21,198.15,0.12549]
[1738941538930,40.90685758,198.21,198.14,6.81658697]
[1738941538931,38.88885758,198.19,198.14,6.81658697]
[1738941539131,38.88885758,198.18,198.12,0.75666564]
[1738941539342,38.88885758,198.17,198.12,0.75666564]
[1738941539932,2.018,198.21,198.12,0.75666564]
[1738941540132,2.018,198.21,198.09,1.6549]
[1738941540133,38.88885758,198.14,198.09,1.6549]
[1738941540339,38.88885758,198.13,198.09,1.6549]
[1738941540528,38.88885758,198.17,198.1,39.64585419]
[1738941540708,40.90725758,198.17,198.1,39.64585419]
[1738941540918,38.88885758,198.11,198.08,0.0001]
[1738941541233,20.0,198.12,197.99,1.5013]
[1738941541537,38.88885758,198.0,197.99,1.5013]
[1738941541709,38.88885758,198.01,197.99,1.5013]
[1738941542119,38.88885758,198.0,197.99,1.5013]
[1738941542340,38.88885758,198.01,197.99,1.5013]
[1738941542517,38.88885758,198.0,197.97,7.69803493]
[1738941542711,38.88885758,197.98,197.97,7.69803493]
[1738941543645,38.88885758,198.01,197.93,39.64644197]
[1738941543940,38.88885758,198.03,197.96,39.13983758]
[1738941544146,2.0189,198.12,197.99,0.12549]
[1738941544450,5.0461,198.18,198.01,45.66282853]
[1738941544625,6.4022,198.22,198.01,45.66282853]
[1738941544626,2.0182,198.19,198.05,0.12549]
[1738941544813,2.0182,198.19,198.06,0.75695925]
[1738941545018,38.88885758,198.16,198.08,38.88885758]
[1738941545327,38.88885758,198.17,198.1,38.88885758]
[1738941545524,38.88885758,198.2,198.13,38.88885758]
[1738941545710,38.88885758,198.19,198.11,39.77122779]
[1738941545914,38.88885758,198.14,198.08,0.75680298]
[1738941546135,2.018,198.22,198.08,0.75680298]
[1738941546538,5.0446,198.23,198.08,0.75680298]
[1738941547043,5.0446,198.23,198.07,2.25822358]
[1738941547224,38.88885758,198.15,198.08,38.88885758]
[1738941547422,38.88885758,198.15,198.1,0.12549]
[1738941547636,0.063,198.24,198.14,38.88885758]